Cogmind - Beta 13 @@@ ROGUE MODE // 2024.04.20 @ 23:04:56 Player: YBOUZL Result: Destroyed by H-61 Shepherd with Heavy Assault Cannon Performance ------------- Evolutions (2) 1000 Regions Visited (5) 1000 Robots Destroyed (6) 30 Value Destroyed (242) 242 Prototype IDs (0) 0 Alien Tech Used (0) 0 Bonus (270) 270 TOTAL SCORE: 2542 Bonus ------- Pacifist 270 Cogmind --------- Core Integrity 0/550 Matter 300/300 Energy 100/100 System Corruption 0% Temperature Cool (0) Movement Core (150) Ox2 Location -8/Materials Parts ------- > --- POWER (2) -------- (None) > --- PROPULSION (3) --- (None) > --- UTILITY (3) ------ Small Storage Unit > --- WEAPON (3) ------- Autogun > --- INVENTORY (8) ---- (None) Peak State ------------ > --- POWER ------------ Ion Engine Light Ion Engine > --- PROPULSION ------- Light Treads Light Treads Advanced Treads > --- UTILITY ---------- Small Storage Unit Weapon Shielding > --- WEAPON ----------- Medium Laser Field Laser Light Cannon > --- INVENTORY -------- Compact Matter Pod [Rating: 14] Favorites ----------- Power Ion Engine Engine Ion Engine Power Core Light Nuclear Core Propulsion Compact Wheel Treads Light Treads Leg Carbon-fiber Leg Wheel Compact Wheel Utility Small Storage Unit Storage Small Storage Unit Protection Weapon Shielding Weapon Medium Laser Energy Gun Medium Laser Ballistic Gun Autogun Ballistic Cannon Light Cannon Build | -11 -10 -10 -10 -9 -8 ------- Run | Yrd Mat Min Exi Min Mat Slots Evolved 4 | . . . . . 4 Power 1 | . . . . . 1 Propulsion 1 | . . . . . 1 Utility 1 | . . . . . 1 Weapon 1 | . . . . . 1 Parts Attached 30 | 9 1 1 . 2 17 Power 5 | 2 . . . . 3 Engine 4 | 2 . . . . 2 Core 1 | . . . . . 1 Reactor . | . . . . . . Propulsion 14 | 4 . . . 2 8 Treads 6 | 2 . . . . 4 Leg 1 | . . . . . 1 Wheel 7 | 2 . . . 2 3 Hover . | . . . . . . Flight . | . . . . . . Utility 3 | 1 . 1 . . 1 Device . | . . . . . . Storage 2 | 1 . . . . 1 Processor . | . . . . . . Hackware . | . . . . . . Protection 1 | . . 1 . . . Artifact . | . . . . . . Weapon 8 | 2 1 . . . 5 Energy Gun 5 | 2 . . . . 3 Energy Cannon . | . . . . . . Ballistic Gun 2 | . . . . . 2 Ballistic Cannon 1 | . 1 . . . . Launcher . | . . . . . . Special Weapon . | . . . . . . Impact Weapon . | . . . . . . Slashing Weapon . | . . . . . . Piercing Weapon . | . . . . . . Special Melee Weapon . | . . . . . . Unidentified Prototypes . | . . . . . . Parts Lost 18 | . . . . . 18 Power 4 | . . . . . 4 Propulsion 7 | . . . . . 7 Utility 2 | . . . . . 2 Weapon 5 | . . . . . 5 Highest Loss Streak 14 | . . . . . 14 To Critical Strikes 1 | . . . . . 1 Average Slot Usage (%) 92 | . 82 91 100 100 63 Engine 13 | . 14 14 14 14 9 Treads 2 | . . . . . 13 Wheel 24 | . 28 28 28 28 4 Storage 13 | . 14 14 14 14 11 Protection 11 | . . 6 14 14 4 Energy Gun 13 | . 22 14 14 14 9 Ballistic Cannon 12 | . 2 14 14 14 5 Naked Turns . | . . . . . . Heaviest Build 22 | 14 15 16 16 16 22 Greatest Support 62 | 40 26 26 26 26 62 Greatest Overweight (x) 4 | . . . . . 4 Average Overweight (x) . | . . . . . . Largest Inventory Capacity 8 | 8 8 8 8 8 8 Average Capacity 7 | 5 8 8 8 8 8 Most Carried 8 | 4 6 6 5 8 7 Average Carried 4 | 1 4 5 5 7 1 Final Capacity 8 | 8 8 8 8 8 8 Final Carried 8 | 3 5 5 5 8 . Class Distribution -------------------- 92% | Mutant 7% | Tank Dominant Class ---------------- Mutant | -10/Materials Mutant | -10/Mines Mutant | -10/Exiles Mutant | -9/Mines Mutant | -8/Materials Resources | -11 -10 -10 -10 -9 -8 ----------- Run | Yrd Mat Min Exi Min Mat Matter Collected 588 | 157 . 27 . 199 205 Remotely . | . . . . . . Salvage Created 317 | . . . . . 317 Parts 10 | . . . . . 10 Haulers Intercepted . | . . . . . . Recyclers Shooed 1 | . . . . . 1 Parts Field Recycled . | . . . . . . Retrieved Matter . | . . . . . . Parts Self-Destructed . | . . . . . . Prevented . | . . . . . . Kills | -11 -10 -10 -10 -9 -8 ------- Run | Yrd Mat Min Exi Min Mat Combat Hostiles Destroyed 5 | . . . . . 5 Guns 4 | . . . . . 4 Cannons 1 | . . . . . 1 Classes Destroyed 3 | . . . . . 3 Recycler 1 | . . . . . 1 Grunt 4 | . . . . . 4 Sentry 1 | . . . . . 1 Best Kill Streak 2 | . . . . . 2 Combat Bots Only 2 | . . . . . 2 Max Kills in Single Turn 1 | . . . . . 1 Gunslinging . | . . . . . . Exploded . | . . . . . . Melee . | . . . . . . Uniques/NPCs Destroyed . | . . . . . . Combat | -11 -10 -10 -10 -9 -8 -------- Run | Yrd Mat Min Exi Min Mat Hostile Shots Fired 151 | . . . . . 151 Missed 29 | . . . . . 29 Damage Taken 2169 | . . . . . 2169 Core 588 | . . . . . 588 Absorbed by Shields . | . . . . . . Redirected to Shielding 30 | . . . . . 30 Core Remaining (%) 100 | 100 . . . 100 . Volleys Fired 30 | . . . . . 30 Largest 3 | . . . . . 3 Hottest 148 | . . . . . 148 Shots Fired 59 | . . . . . 59 Gun 42 | . . . . . 42 Cannon 17 | . . . . . 17 Launcher . | . . . . . . Special . | . . . . . . Kinetic 24 | . . . . . 24 Thermal 35 | . . . . . 35 Explosive . | . . . . . . Electromagnetic . | . . . . . . Robot Hit Streak 7 | . . . . . 7 Robot Miss Streak 5 | . . . . . 5 Penetration Max . | . . . . . . Secondary Targets 1 | . . . . . 1 Max Gunslinging Chain 1 | . . . . . 1 Shots Hit Robots 36 | . . . . . 36 Core Hits 15 | . . . . . 15 Critical Kills . | . . . . . . Critical Parts Destroyed . | . . . . . . Critical Strikes 1 | . . . . . 1 Burn 1 | . . . . . 1 Melee Attacks . | . . . . . . Impact . | . . . . . . Slashing . | . . . . . . Piercing . | . . . . . . Sneak Attacks . | . . . . . . Combat Hostiles . | . . . . . . Follow-up Attacks . | . . . . . . Damage Inflicted 595 | . . . . . 595 Guns 451 | . . . . . 451 Cannons 144 | . . . . . 144 Explosions . | . . . . . . Melee . | . . . . . . Ramming . | . . . . . . Kinetic 211 | . . . . . 211 Thermal 384 | . . . . . 384 Explosive . | . . . . . . Electromagnetic . | . . . . . . Impact . | . . . . . . Slashing . | . . . . . . Piercing . | . . . . . . Highest Corruption . | . . . . . . Average Corruption . | . . . . . . Corruption Purged . | . . . . . . Corruption Blocked . | . . . . . . Overload Shots . | . . . . . . Overflow Damage . | . . . . . . Projectiles . | . . . . . . Explosions . | . . . . . . Melee . | . . . . . . Knockbacks 4 | . . . . . 4 Impact . | . . . . . . Kinetic 4 | . . . . . 4 Secondary . | . . . . . . Self-Inflicted Damage . | . . . . . . Shots . | . . . . . . Rammed 1 | . . . . 1 . Targets Rammed 1 | . . . . 1 . Kicked . | . . . . . . Crushed . | . . . . . . Highest Temperature 571 | . . . . . 571 Average Temperature 219 | . . . . . 219 Received Heat Transfer 684 | . . . . . 684 Effects 11 | . . . . . 11 Shutdowns 2 | . . . . . 2 Energy Bleed 2 | . . . . . 2 Interference 1 | . . . . . 1 Matter Decay 1 | . . . . . 1 Short Circuit 1 | . . . . . 1 Damage (minor) 3 | . . . . . 3 Damage (core) 1 | . . . . . 1 Siege Activations . | . . . . . . Robots Corrupted . | . . . . . . Combat Hostiles . | . . . . . . Parts Fried . | . . . . . . Impact Corruptions . | . . . . . . Robots Melted . | . . . . . . Combat Hostiles . | . . . . . . Parts Melted 5 | . . . . . 5 Heat Transferred 999 | . . . . . 999 Parts Sabotaged . | . . . . . . Parts Stolen . | . . . . . . Parts Stripped . | . . . . . . Power Chain Reactions . | . . . . . . Alert | -11 -10 -10 -10 -9 -8 ------- Run | Yrd Mat Min Exi Min Mat Peak Influence 81 | . . . . . 81 Initial . | . . . . . . Average 6 | . . . . . 24 Maximum Alert Level . | . . . . . . Low Security (%) 100 | 100 100 100 . 100 100 Level 1 . | . . . . . . Level 2 . | . . . . . . Level 3 . | . . . . . . Level 4 . | . . . . . . Level 5 . | . . . . . . High Security . | . . . . . . Max Security . | . . . . . . Squads Dispatched 2 | . . . . . 2 Investigation 1 | . . . . . 1 Extermination . | . . . . . . Reinforcement 1 | . . . . . 1 Assault . | . . . . . . Garrison . | . . . . . . Intercept . | . . . . . . Searches Triggered . | . . . . . . Construction Impeded . | . . . . . . Haulers Reinforced . | . . . . . . Active Scanning Responses . | . . . . . . Cargo Convoy Interrupts . | . . . . . . Stealth | -11 -10 -10 -10 -9 -8 --------- Run | Yrd Mat Min Exi Min Mat Distress Signals 1 | . . . . . 1 Communications Jammed . | . . . . . . Distress Signals . | . . . . . . Times Spotted 13 | . . . . . 13 Peak Tracking Total 4 | . . . . . 4 Tactical Retreats 1 | . . . . . 1 Traps | -11 -10 -10 -10 -9 -8 ------- Run | Yrd Mat Min Exi Min Mat Traps Triggered . | . . . . . . Indirectly . | . . . . . . Trap Hack Attempts . | . . . . . . Triggered . | . . . . . . Disarmed . | . . . . . . Reprogrammed . | . . . . . . Reused . | . . . . . . Traps Extracted . | . . . . . . Installed . | . . . . . . Triggered . | . . . . . . Machines | -11 -10 -10 -10 -9 -8 ---------- Run | Yrd Mat Min Exi Min Mat Machines Disabled . | . . . . . . Max in Single Turn . | . . . . . . Machines Repaired . | . . . . . . Machines Dismantled . | . . . . . . Machines Sabotaged . | . . . . . . Overloaded Fab Kills . | . . . . . . Hacking | -11 -10 -10 -10 -9 -8 --------- Run | Yrd Mat Min Exi Min Mat Machines Accessed 6 | . . . 4 1 1 Terminals 2 | . . . . 1 1 Fabricators . | . . . . . . Repair Stations . | . . . . . . Recycling Units . | . . . . . . Scanalyzers . | . . . . . . Garrison Access . | . . . . . . Total Hacks 55 | . . . 49 2 4 Successful 53 | . . . 49 1 3 Failed 2 | . . . . 1 1 Catastrophic 1 | . . . . . 1 Database Lockouts . | . . . . . . Manual 2 | . . . 2 . . Terminals 6 | . . . . 2 4 Fabricators . | . . . . . . Repair Stations . | . . . . . . Recycling Units . | . . . . . . Scanalyzers . | . . . . . . Garrison Access . | . . . . . . Terminal Hacks 53 | . . . 49 1 3 Record 51 | . . . 49 . 2 Alert Level 1 | . . . . . 1 Dispatch Records 1 | . . . . 1 . Fabricator Hacks . | . . . . . . Repair Station Hacks . | . . . . . . Recycling Unit Hacks . | . . . . . . Scanalyzer . | . . . . . . Garrison Access Hacks . | . . . . . . Unauthorized Hacks . | . . . . . . Terminals . | . . . . . . Fabricators . | . . . . . . Repair Stations . | . . . . . . Recycling Units . | . . . . . . Scanalyzers . | . . . . . . Garrison Access . | . . . . . . Data Cores Recovered . | . . . . . . Used . | . . . . . . Hacking Detections 1 | . . . . . 1 Full Trace Events 1 | . . . . . 1 Feedback Events . | . . . . . . Feedback Blocked . | . . . . . . Robot Schematics Acquired . | . . . . . . Robots Built . | . . . . . . Authchips . | . . . . . . Time . | . . . . . . Total Robot Build Rating . | . . . . . . Part Schematics Acquired . | . . . . . . Parts Built . | . . . . . . Authchips . | . . . . . . Time . | . . . . . . Total Part Build Rating . | . . . . . . Parts Repaired . | . . . . . . Time . | . . . . . . Parts Recycled . | . . . . . . Recycled Matter . | . . . . . . Retrieved Matter . | . . . . . . Retrieved Components . | . . . . . . Parts Scanalyzed . | . . . . . . Part Schematics Acquired . | . . . . . . Parts Damaged . | . . . . . . Bothacking | -11 -10 -10 -10 -9 -8 ------------ Run | Yrd Mat Min Exi Min Mat Used RIF Installer . | . . . . . . Robots Hacked . | . . . . . . Non-combat . | . . . . . . Combat . | . . . . . . Robot Hacks Applied . | . . . . . . Relay Couplers Released . | . . . . . . Fabnet Peak Effective % . | . . . . . . Robots Rewired . | . . . . . . Allies Hacked . | . . . . . . Hacks Repelled . | . . . . . . Allies | -11 -10 -10 -10 -9 -8 -------- Run | Yrd Mat Min Exi Min Mat Total Allies . | . . . . . . Largest Group . | . . . . . . Highest-Rated Group . | . . . . . . Highest-Rated Ally . | . . . . . . Total Orders . | . . . . . . Ally Attacks . | . . . . . . Total Damage . | . . . . . . Kills . | . . . . . . Allies Corrupted . | . . . . . . Allies Melted . | . . . . . . Intel | -11 -10 -10 -10 -9 -8 ------- Run | Yrd Mat Min Exi Min Mat Robot Analysis Total . | . . . . . . Derelict Logs Recovered 1 | . . . . 1 . Drone Launches . | . . . . . . Drone Recoveries . | . . . . . . Exploration | -11 -10 -10 -10 -9 -8 ------------- Run | Yrd Mat Min Exi Min Mat Turns Passed 1879 | 78 44 116 796 537 308 Spaces Moved 1835 | 51 45 127 879 589 144 Core 16 | 5 . . . . 11 Treads 99 | 22 . . . . 77 Legs 9 | . . . . . 9 Wheels 1711 | 24 45 127 879 589 47 Hover . | . . . . . . Flight . | . . . . . . Fastest Speed 50 | 50 90 90 90 90 93 Average Speed 94 | 116 90 90 90 90 137 Slowest Speed 250 | 160 90 90 90 90 250 Overloaded Moves . | . . . . . . Propulsion Burnouts . | . . . . . . Robots Hopped . | . . . . . . Cave-ins Triggered . | . . . . . . Exploration Rate (%) 40 | 4 9 30 92 93 13 Regions Visited 5 Branch Regions 3 Pre-discovered Areas 1 | . . . 1 . . Known Exits Taken . | . . . . . . Unknown Exits Taken 5 | 1 1 1 1 1 . Scrap Searched 3 | . . 1 . 2 . Spaces Dug . | . . . . . . Terrain Destroyed . | . . . . . . Melee . | . . . . . . Projectile . | . . . . . . AOE . | . . . . . . Terrain Rammed . | . . . . . . Walls Destroyed . | . . . . . . Machines Disabled . | . . . . . . Actions | -11 -10 -10 -10 -9 -8 --------- Run | Yrd Mat Min Exi Min Mat Total 1931 | 70 48 128 883 594 208 Wait 5 | . . . 5 . . Move 1830 | 50 44 126 878 588 144 Hop . | . . . . . . Pick Up 26 | 9 2 1 . 3 11 Fast Attach . | . . . . . . Attach 27 | 8 1 1 . . 17 Detach 3 | 2 1 . . . . Swap 3 | 1 . . . 2 . Drop 6 | . . . . . 6 Fire 30 | . . . . . 30 Melee . | . . . . . . Ram 1 | . . . . 1 . Kick . | . . . . . . Crush . | . . . . . . Escape Stasis . | . . . . . . Rewire . | . . . . . . Trap . | . . . . . . Miscellaneous . | . . . . . . Route ------- -11/Scrapyard -10/Materials -10/Mines -10/Exiles -9/Mines -8/Materials History --------- Turn | Location | Event 22 | -11/Scrapyard | Discovered new exit (range 16) 79 | -11/Scrapyard | Entered Materials 118 | -10/Materials | Discovered new exit (range 5) 123 | -10/Materials | Entered Mines 234 | -10/Mines | Deemed a non-threat by the Exiles lab entrance 234 | -10/Mines | Discovered new exit (range 5) 239 | -10/Mines | Entered Exiles 265 | -10/Exiles | Met 8R-AWN 280 | -10/Exiles | Met EX-HEX 304 | -10/Exiles | Build established: Mutant 346 | -10/Exiles | Met EX-BIN 519 | -10/Exiles | Met EX-DEC 570 | -10/Exiles | Visited The Gauntlet 722 | -10/Exiles | Discovered new exit (range 14) 948 | -10/Exiles | Learned location of Zion (-7) 1035 | -10/Exiles | Entered Mines 1081 | -9/Mines | Learned Materials emergency access door positions 1393 | -9/Mines | Discovered new exit (range 9) 1572 | -9/Mines | Entered Materials 1572 | -8/Materials | Evolved 4 slots: Power x1, Propulsion x1, Utility x1, Weapon x1 1774 | -8/Materials | Core integrity fell below 50% 1817 | -8/Materials | Lost 14 parts (3p5n1u5w) 1873 | -8/Materials | Core integrity fell below 20% 1880 | -8/Materials | Destroyed by H-61 Shepherd with Heavy Assault Cannon Last Messages --------------- K-01 Serf collects debris. Acquired 3 matter. K-01 Serf collects debris. Critical hit (Burn: +37). K-01 Serf collects debris. Slug penetrates Wall. K-01 Serf collects debris. Lgt. Nuclear Core destroyed. U-05 Engineer builds a Wall. Knocked back. U-05 Engineer builds a Wall. Critical hit (Burn: +37). H-61 Shepherd calls for reinforcements. ALERT: Hostile activity reported, dispatching reinforcements to area. Knocked back. Acquired 3 matter. K-01 Serf collects debris. Com. Matter Pod destroyed. Critical hit (Blast). Map ----- +----------------------------------------------------+ | | | | | ?????????????????????????????????????????????????? | | ?????????????????????????????????????????????????? | | ?????????????????????????????????????????????????? | | ?????????????????????????????????????????????????? | | ?????????????????????????????????????????????????? | | ?????????????????????????????????????????????????? | | ???????????????????????????#+????????????????????? | | ??????????????????????????# ????????????????????? | | ?????????????????????????? #???????????????????? | | ??????????????????????????# #???????????????????? | | ??????????????????????????# #???????????????????? | | ?????????????????????????## ##??????????????????? | | ???????????????????????### #??????????????????? | | ???????????????????????? ??????????????????? | | ????????????????????????? ???????????????????? | | ?????????????????????????? ???????????????????? | | ??????????????????????????# #???????????????????? | | ??????????????????????????# #????#######???????? | | ???????????????????????####! ###### ####### | | ????????????????????" + *%= | | ???????????????????????####! u | | ???????????????????????####Y####### % | | ???????????????????????# H ## ####### | | ???????????????????????# @ % ### ###???????? | | ???????????????????????#%" k"""" #?# #?????????? | | ???????????????????????# """"""" #?# #?????????? | | ???????????????????????# """"""" #?# #?????????? | | ???????????????????????# """"""" #?# #?????????? | | ???????????????????????# """""""?#?# #?????????? | | ???????????????????????# ????# #?????????? | | ???????????????????????# #########?# #?????????? | | ???????????????????????###?# ### ##########? | | ???????????????????????????# | | ???????????????????????????# | | ???????????????????????????# | | ???????????????????????????# %##########+###### | | ???????????????????????????## %##???????????????? | | ??????????????????????####### !#????????????????? | | ??????????????????????# # %#????????????????? | | ??????????????????????# # % #????????????????? | | ??????????????????????# # %#????????????????? | | ????????????########### # #????????????????? | | ????????????# """ # # %#??"""???????????? | | ????????????#|=""""" # # #?"""????????????? | | ????????????#[[""""" # # # ?????????????? | | ????????????#==""""" # #% ^# ??????????????? | | ????????????# """ + %+ + ???????????????? | | ????????????# [ # # #????????????????? | +----------------------------------------------------+ Best States ------------- Heat Dissipation 31 Energy Generation 15 Energy Capacity 275 Matter Stores 450 Matter Capacity 450 Sight Range 16 Terrain Scan Density 10 Weapon Shielding 33 Evasion (%) 45 Recoil Reduction 3 Item Schematics ----------------- None Robot Schematics ------------------ None Fabricated ------------ Nothing Alien Tech Used ----------------- None Achievements -------------- Librarian Challenges ------------ None Game ------ Seed KineticModifiedFalx Manual? 0 Play Time 00:28:59 Cumulative 2.1 hours Start 2024.04.20 @ 22:27:21 End 2024.04.20 @ 23:04:56 Sessions 1 Manual Loads 0 Difficulty Rogue Special Mode None Game No. 5 Rogue 5 Adventurer 0 Explorer 0 Win Type - Total 0 Types 0/0/0/0/0/0/0/0/0 Lore% 10 Gallery% 6 Achievement% 5 Wizard Run 0 Options --------- Layout 1 ASCII 0 Keyboard 0 Movement Mouse Keybinds 0 Fullscreen 1 Font 24/Smallcaps Map View 50x35 Zoom Use 0% Tactical HUD 0 Map Filters NONE Filters NONE Steam 1 RUN: 23087d2f-2800-495b-83e7-0f22f8c5d44c